{"text_format":"3","workbook":"xlsx","n_sheets":1,"sheets":["прилож. № 7"],"read":"whole","date_system":"1900"}

{"sheet":"прилож. № 7","index":0,"n_rows":216,"n_cols":8,"rows_kept":216,"merged":[[0,0,0,5],[1,0,1,5],[2,1,2,5],[3,0,3,5]]}
["                                                                                    Приложение № 2"]
["                                                                                                            к  решению Думы Ушаковского муниципального образования от 26.04.2018 г. № 95                                                                                                                                      \"О внесении изменений в решение Думы Ушаковского муниципального образования № 66 от 08.12.2017 г. \"Об утверждении бюджета на 2018 г. и на плановый период 2019-2020 годов\"                                                                                                                                                                                                                                      "]
[]
["РАСПРЕДЕЛЕНИЕ БЮДЖЕТНЫХ АССИГНОВАНИЙ  ПО РАЗДЕЛАМ, ПОДРАЗДЕЛАМ, ЦЕЛЕВЫМ СТАТЬЯМ (МУНИЦИПАЛЬНЫМ ПРОГРАММАМ И НЕПРОГРАММНЫМ НАПРАВЛЕНИЯМ ДЕЯТЕЛЬНОСТИ) И ВИДАМ РАСХОДОВ КЛАССИФИКАЦИИ РАСХОДОВ БЮДЖЕТОВ НА 2018 ГОД"]
[]
["Наименование","РЗ","Пр","КЦСР","КВР","Сумма         (тыс. руб)"]
["В С Е Г О",{"$nulls":4},{"$f":"F8+F89+F85+F94+F103+F120+F167+F185+F202","v":85514.4}]
["ОБЩЕГОСУДАРСТВЕННЫЕ ВОПРОСЫ","01","00","00.0.00.00000","000",{"$f":"F9+F40+F78+F57+F32","v":{"v":19780.300000000003,"d":"19780.3"}}]
["Функционирование высшего должностного лица субъекта Российской Федерации и муниципального образования","01","02","00.0.00.00000","000",{"$f":"F10","v":1756.3}]
["Непрограммные расходы органов местного самоуправления","01","02","91.0.00.00000","000",{"$f":"F11+F18","v":1756.3}]
["Непрограммные расходы органов местного самоуправления за счет средств местного бюджета","01","02","91.1.00.00000","000",{"$f":"F12","v":1756.3}]
["Осуществление органами местного самоуправления полномочий местного значения поселения","01","02","91.1.00.60000","000",{"$f":"F13","v":1756.3}]
["Обеспечение деятельности в сфере установленных функций","01","02","91.1.00.60001","000",{"$f":"F16+F17","v":1756.3}]
["Расходы на выплаты персоналу в целях обеспечения выполнения функций государственными (муниципальными) органами, казенными учреждениями, органами управления государственными внебюджетными фондами","01","02","91.1.00.60001","100",{"$f":"F15","v":1756.3}]
["Расходы на выплаты персоналу государственных (муниципальных) органов","01","02","91.1.00.60001","120",{"$f":"F16+F17","v":1756.3}]
["Фонд оплаты труда государственных (муниципальных) органов ","01","02","91.1.00.60001","121",1413.1]
["Взносы по обязательному социальному страхованию на выплаты денежного содержания и иные выплаты работникам государственных (муниципальных) органов","01","02","91.1.00.60001","129",343.2]
["Непрограммные расходы органов местного самоуправления за счет средств областного бюджета","01","02","91.1.00.60003","000",{"$f":"F19","v":{"v":0,"d":"0.0"}}]
["Субсидии на выравнивание обеспеченности муниципальных образований Иркутской области по реализации ими их отдельных расходных обязательств","01","02","91.1.00.60004","000",{"$f":"F20","v":{"v":0,"d":"0.0"}}]
["Расходы на выплаты персоналу в целях обеспечения выполнения функций государственными (муниципальными) органами, казенными учреждениями, органами управления государственными внебюджетными фондами","01","02","91.1.00.60005","100",{"$f":"F21","v":{"v":0,"d":"0.0"}}]
["Расходы на выплаты персоналу государственных (муниципальных) органов","01","02","91.1.00.60006","120",{"$f":"F22+F23","v":{"v":0,"d":"0.0"}}]
["Фонд оплаты труда государственных (муниципальных) органов ","01","02","91.1.00.60007","121",{"v":0,"d":"0.0"}]
["Взносы по обязательному социальному страхованию на выплаты денежного содержания и иные выплаты работникам государственных (муниципальных) органов","01","02","91.1.00.60008","129",{"v":0,"d":"0.0"}]
["Функционирование Правительства Российской Федерации, высших исполнительных органов государственной власти субъектов РФ, местных администраций","01","04","91.1.00.60009","000",{"$f":"F40+F25","v":16957.9}]
["Программные расходы","01","04","91.1.00.60010","000",{"$f":"F26","v":{"v":0,"d":"0.0"}}]
["Муниципальная программа \"Подготовка к празднованию 70-летия победы\"","01","04","91.1.00.60011","000",{"v":0,"d":"0.0"}]
["Реализация мероприятий муниципальной программы за счет средств местного бюджета","01","04","91.1.00.60012","000",{"v":0,"d":"0.0"}]
["Мероприятия, связанные, с подготовкой к празднованию 70-летия победы","01","04","91.1.00.60013","000",{"v":0,"d":"0.0"}]
["Закупка товаров, работ и услуг для обеспечения государственных (муниципальных) нужд","01","04","91.1.00.60014","200",{"v":0,"d":"0.0"}]
["Иные закупки товаров, работ и услуг для обеспечения государственных (муниципальных) нужд","01","04","91.1.00.60015","240",{"v":0,"d":"0.0"}]
["Прочая закупка товаров, работ и услуг для обеспечения государственных (муниципальных) нужд","01","04","91.1.00.60016","244"]
["Функционирование законодательных (представительных) органов государственной власти и представительных органов муниципальных образований","01","03","91.1.00.00000","000",765.4]
["Непрограммные расходы органов местного самоуправления за счет средств местного бюджета","01","03","91.1.00.00000","000",765.4]
["Осуществление органами местного самоуправления полномочий местного значения поселения","01","03","91.1.00.60000","000",765.4]
["Обеспечение деятельности в сфере установленных функций","01","03","91.1.00.60001","000",765.4]
["Расходы на выплаты персоналу в целях обеспечения выполнения функций государственными (муниципальными) органами, казенными учреждениями, органами управления государственными внебюджетными фондами","01","03","91.1.00.60001","100",765.4]
["Расходы на выплаты персоналу государственных (муниципальных) органов","01","03","91.1.00.60001","120",{"$f":"F38+F39","v":765.4}]
["Фонд оплаты труда государственных (муниципальных) органов ","01","03","91.1.00.60001","121",587.9]
["Взносы по обязательному социальному страхованию на выплаты денежного содержания и иные выплаты работникам государственных (муниципальных) органов","01","03","91.1.00.60001","129",177.5]
["Непрограммные расходы органов местного самоуправления","01","04","91.0.00.00000","000",{"$f":"F41+F57+F56","v":16957.9}]
["Непрограммные расходы органов местного самоуправления за счет средств местного бюджета","01","04","91.1.00.00000","000",{"$f":"F42","v":16831.9}]
["Осуществление органами местного самоуправления полномочий местного значения поселения","01","04","91.1.00.60000","000",{"$f":"F43","v":16831.9}]
["Обеспечение деятельности в сфере установленных функций","01","04","91.1.00.60001","000",{"$f":"F44+F48+F51","v":16831.9}]
["Расходы на выплаты персоналу в целях обеспечения выполнения функций государственными (муниципальными) органами, казенными учреждениями, органами управления государственными внебюджетными фондами","01","04","91.1.00.60001","100",{"$f":"F45","v":13064.2}]
["Расходы на выплаты персоналу государственных (муниципальных) органов","01","04","91.1.00.60001","120",{"$f":"F46+F47","v":13064.2}]
["Фонд оплаты труда государственных (муниципальных) органов ","01","04","91.1.00.60001","121",{"v":10034,"d":"10034.0"}]
["Взносы по обязательному социальному страхованию на выплаты денежного содержания и иные выплаты работникам государственных (муниципальных) органов","01","04","91.1.00.60001","129",3030.2]
["Закупка товаров, работ и услуг для обеспечения государственных (муниципальных) нужд","01","04","91.1.00.60001","200",{"$f":"F49","v":3716.7}]
["Иные закупки товаров, работ и услуг для обеспечения государственных (муниципальных) нужд","01","04","91.1.00.60001","240",{"$f":"F50","v":3716.7}]
["Прочая закупка товаров, работ и услуг для обеспечения государственных (муниципальных) нужд","01","04","91.1.00.60001","244",3716.7,null,-125300]
["Иные бюджетные ассигнования","01","04","91.1.00.60001","850",{"$f":"F52+F54+F55","v":{"v":51,"d":"51.0"}}]
["Исполнение судебных актов","01","04","91.1.00.60001","830",{"$f":"F53","v":{"v":0,"d":"0.0"}}]
["Исполнение судебных актов Российской Федерации и мировых соглашений по возмещению вреда, причиненного в результате незаконных действий (бездействия), органов местного самоуправления либо должностных лиц этих органов, а также в результате деятельности казенных учреждений","01","04","91.1.00.60001","831"]
["Уплата прочих налогов, сборов","01","04","91.1.00.60001","852",{"v":16,"d":"16.0"}]
["Уплата иных платежей","01","04","91.1.00.60001","853",{"v":35,"d":"35.0"}]
[" Исполнение судебных актов Российской Федерации и мировых соглашений по возмещению вреда, причиненного в результате незаконных действий (бездействия) органов государственной власти (государственных органов), органов местного самоуправления либо должностных лиц этих органов, а также в результате деятельности казенных учреждений","01","04","91.1.00.60001","831",125.3,null,125.3]
["Непрограммные расходы органов местного самоуправления за счет средств областного бюджета","01","04","91.2.00.00000","000",{"$f":"F66+F58","v":0.7}]
["Субсидии на выравнивание обеспеченности муниципальных образований Иркутской области по реализации ими их отдельных расходных обязательств","01","04","91.2.00.72600","000",{"$f":"F59+F63","v":{"v":0,"d":"0.0"}}]
["Расходы на выплаты персоналу в целях обеспечения выполнения функций государственными (муниципальными) органами, казенными учреждениями, органами управления государственными внебюджетными фондами","01","04","91.2.00.72600","100",{"$f":"F60","v":{"v":0,"d":"0.0"}}]
["Расходы на выплаты персоналу государственных (муниципальных) органов","01","04","91.2.00.72600","120",{"$f":"F61+F62","v":{"v":0,"d":"0.0"}}]
["Фонд оплаты труда государственных (муниципальных) органов ","01","04","91.2.00.72600","121",{"v":0,"d":"0.0"}]
["Взносы по обязательному социальному страхованию на выплаты денежного содержания и иные выплаты работникам государственных (муниципальных) органов","01","04","91.2.00.72600","129",{"v":0,"d":"0.0"}]
["Иные закупки товаров, работ и услуг для обеспечения государственных (муниципальных) нужд","01","04","91.2.00.72600","200",{"$f":"F64","v":{"v":0,"d":"0.0"}}]
["Прочая закупка товаров, работ и услуг для обеспечения государственных (муниципальных) нужд","01","04","91.2.00.72600","240",{"$f":"F65","v":{"v":0,"d":"0.0"}}]
["Прочая закупка товаров, работ и услуг для обеспечения государственных (муниципальных) нужд","01","04","91.2.00.72600","244",{"v":0,"d":"0.0"}]
["Субвенции на осуществление областного государственного полномочия по определению перечня должностных лиц органов местного самоуправления, уполномоченных составлять протоколы об административных правонарушениях, предусмотренных отдельными законами Иркутской области об административной ответственности","01","04","91.2.00.73150","000",{"$f":"F69","v":0.7}]
["Закупка товаров, работ и услуг для обеспечения государственных (муниципальных) нужд","01","04","91.2.00.73150","200",{"$f":"F68","v":0.7}]
["Иные закупки товаров, работ и услуг для обеспечения государственных (муниципальных) нужд","01","04","91.2.00.73150","240",{"$f":"F69","v":0.7}]
["Прочая закупка товаров, работ и услуг для обеспечения государственных (муниципальных) нужд","01","04","91.2.00.73150","244",0.7]
["Обеспечение проведения выборов и референдумов","01","07","00.0.00.00000","000",{"$f":"F71","v":{"v":0,"d":"0.0"}}]
["Непрограммные расходы органов местного самоуправления","01","07","91.0.00.00000","000",{"v":0,"d":"0.0"}]
["Непрограммные расходы органов местного самоуправления за счет средств местного бюджета","01","07","91.1.00.00000","000",{"v":0,"d":"0.0"}]
["Осуществление органами местного самоуправления полномочий местного значения поселения","01","07","91.1.00.60000","000",{"v":0,"d":"0.0"}]
["Проведения выборов и референдумов","01","07","91.1.00.60003","000",{"v":0,"d":"0.0"}]
["Закупка товаров, работ и услуг для обеспечения государственных (муниципальных) нужд","01","07","91.1.00.60003","200",{"v":0,"d":"0.0"}]
["Иные закупки товаров, работ и услуг для обеспечения государственных (муниципальных) нужд","01","07","91.1.00.60003","240",{"v":0,"d":"0.0"}]
["Прочая закупка товаров, работ и услуг для обеспечения государственных (муниципальных) нужд","01","07","91.1.00.60003","244",{"v":0,"d":"0.0"}]
["Резервные фонды","01","11","00.0.00.00000","000",{"$f":"F79","v":{"v":300,"d":"300.0"}}]
["Непрограммные расходы органов местного самоуправления","01","11","91.1.00.00000","000",{"v":300,"d":"300.0"}]
["Непрограммные расходы органов местного самоуправления за счет средств местного бюджета","01","11","91.1.00.00000","000",{"$f":"F81","v":{"v":300,"d":"300.0"}}]
["Осуществление органами местного самоуправления полномочий местного значения поселения","01","11","91.1.00.60000","000",{"v":300,"d":"300.0"}]
["Резервный фонд администрации муниципального образования","01","11","91.1.00.60004","000",{"v":300,"d":"300.0"}]
["Иные бюджетные ассигнования","01","11","91.1.00.60004","800",{"v":300,"d":"300.0"}]
["Резервные средства","01","11","91.1.00.60004","870",{"v":300,"d":"300.0"}]
["Другие общегосударственные вопросы","01","13","91.1.00.00000","000",{"$f":"F86","v":{"v":2654,"d":"2654.0"}}]
["Расходы на выплату персоналу в целях обеспечения выполнения функций государственными (муниципальными) органами, казенными учреждениями, органами управления государственными внебюджетными фондами","01","13","91.1.00.60002","100",{"$f":"F87+F88","v":{"v":2654,"d":"2654.0"}}]
["Фонд оплаты труда казенных учреждений и взносы по обязательному социальному страхованию","01","13","91.1.00.60002","111",2088.1]
["Взносы по обязательному социальному страхованию на выплаты по оплате труда работников и иные выплаты работникам учреждений","01","13","91.1.00.60002","119",565.9]
["НАЦИОНАЛЬНАЯ ОБОРОНА","02","00","00.0.00.00000","000",{"$f":"F90+F91+F92","v":{"v":327.20000000000005,"d":"327.2"}}]
["Мобилизационная и вневойсковая подготовка","02","03","91.3.00.51180","121",228.3]
["Мобилизационная и вневойсковая подготовка","02","03","91.3.00.51180","129",68.9]
["Закупка товаров, работ и услуг для обеспечения государственных (муниципальных) нужд","02","03","91.3.00.51180","200",{"v":30,"d":"30.0"}]
["Иные закупки товаров, работ и услуг для обеспечения государственных (муниципальных) нужд","02","03","91.3.00.51180","240",{"v":30,"d":"30.0"}]
["НАЦИОНАЛЬНАЯ БЕЗОПАСНОСТЬ И ПРАВООХРАНИТЕЛЬНАЯ ДЕЯТЕЛЬНОСТЬ","03","00","00.0.00.00000","000",{"$f":"F95","v":{"v":350,"d":"350.0"}}]
["Обеспечение пожарной безопасности","03","10","00.0.00.00000","000",{"v":350,"d":"350.0"}]
["Непрограммные расходы органов местного самоуправления","03","10","91.0.00.00000","000",{"v":350,"d":"350.0"}]
["Непрограммные расходы органов местного самоуправления за счет средств местного бюджета","03","10","91.1.00.00000","000",{"v":350,"d":"350.0"}]
["Осуществление органами местного самоуправления полномочий местного значения поселения","03","10","91.1.00.60000","000",{"v":350,"d":"350.0"}]
["Реализация других функций, связанных с обеспечением национальной безопасности и правоохранительной деятельности","03","10","91.1.00.60007","000",{"v":350,"d":"350.0"}]
["Закупка товаров, работ и услуг для обеспечения государственных (муниципальных) нужд","03","10","91.1.00.60007","200",{"v":350,"d":"350.0"}]
["Иные закупки товаров, работ и услуг для обеспечения государственных (муниципальных) нужд","03","10","91.1.00.60007","240",{"v":350,"d":"350.0"}]
["Прочая закупка товаров, работ и услуг для обеспечения государственных (муниципальных) нужд","03","10","91.1.00.60007","244",{"v":350,"d":"350.0"}]
["НАЦИОНАЛЬНАЯ ЭКОНОМИКА","04","00","00.0.00.00000","000",{"$f":"F104+F112","v":{"v":18296.600000000002,"d":"18296.6"}}]
["Дорожное хозяйство (дорожные фонды)","04","09","00.0.00.00000","000",{"$f":"F105","v":7593.7}]
["Непрограммные расходы органов местного самоуправления","04","09","91.0.00.00000","000",7593.7]
["Непрограммные расходы органов местного самоуправления за счет средств местного бюджета","04","09","91.1.00.00000","000",7593.7]
["Осуществление органами местного самоуправления полномочий местного значения поселения","04","09","91.1.00.60000","000",7593.7]
["Иные мероприятия и сфере установленных функций","04","09","91.1.00.60011","000",7593.7]
["Закупка товаров, работ и услуг для обеспечения государственных (муниципальных) нужд","04","09","91.1.00.60011","200",7593.7]
["Иные закупки товаров, работ и услуг для обеспечения государственных (муниципальных) нужд","04","09","91.1.00.60011","240",7593.7]
["Прочая закупка товаров, работ и услуг для обеспечения государственных (муниципальных) нужд","04","09","91.1.00.60011","244",7593.7]
["Другие вопросы в области национальной экономике","04","12","00.0.00.00000","000",{"$f":"F113","v":{"v":10702.900000000001,"d":"10702.9"}}]
["Непрограммные расходы органов местного самоуправления","04","12","91.0.00.00000","000",{"v":10702.900000000001,"d":"10702.9"}]
["Непрограммные расходы органов местного самоуправления за счет средств местного бюджета","04","12","91.1.00.00000","000",{"v":10702.900000000001,"d":"10702.9"}]
["Осуществление органами местного самоуправления полномочий местного значения поселения","04","12","91.1.00.60000","000",{"v":10702.900000000001,"d":"10702.9"}]
["Иные мероприятия и сфере установленных функций","04","12","91.1.00.60011","000",{"v":10702.900000000001,"d":"10702.9"}]
["Закупка товаров, работ и услуг для обеспечения государственных (муниципальных) нужд","04","12","91.1.00.60011","200",{"v":10702.900000000001,"d":"10702.9"}]
["Иные закупки товаров, работ и услуг для обеспечения государственных (муниципальных) нужд","04","12","91.1.00.60011","240",{"v":10702.900000000001,"d":"10702.9"}]
["Прочая закупка товаров, работ и услуг для обеспечения государственных (муниципальных) нужд","04","12","91.1.00.60011","244",{"$f":"2000+10733.2-450-780.3-800","v":{"v":10702.900000000001,"d":"10702.9"}},null,"450-780,3-800"]
["ЖИЛИЩНО-КОММУНАЛЬНОЕ ХОЗЯЙСТВО","05","00","00.0.00.00000","000",{"$f":"F121+F129+F137","v":{"v":27555.199999999997,"d":"27555.2"}}]
["Жилищное хозяйство","05","01","00.0.00.00000","000",{"$f":"F122","v":{"v":6040,"d":"6040.0"}}]
["Непрограммные расходы органов местного самоуправления","05","01","91.0.00.00000","000",{"v":6040,"d":"6040.0"}]
["Непрограммные расходы органов местного самоуправления за счет средств местного бюджета","05","01","91.1.00.00000","000",{"v":6040,"d":"6040.0"}]
["Осуществление органами местного самоуправления полномочий местного значения поселения","05","01","91.1.00.60000","000",{"v":6040,"d":"6040.0"}]
["Текущий ремонт в сфере установленных функций","05","01","91.1.00.60009","000",{"v":6040,"d":"6040.0"}]
["Закупка товаров, работ и услуг для обеспечения государственных (муниципальных) нужд","05","01","91.1.00.60009","200",{"v":6040,"d":"6040.0"}]
["Иные закупки товаров, работ и услуг для обеспечения государственных (муниципальных) нужд","05","01","91.1.00.60009","240",{"v":6040,"d":"6040.0"}]
["Прочая закупка товаров, работ и услуг для обеспечения государственных (муниципальных) нужд","05","01","91.1.00.60009","244",{"$f":"40+6000","v":{"v":6040,"d":"6040.0"}}]
["Коммунальное хозяйство","05","02","00.0.00.00000","000",{"$f":"F130","v":8400.3}]
["Непрограммные расходы органов местного самоуправления","05","02","91.0.00.00000","000",{"$f":"F132","v":8400.3}]
["Непрограммные расходы органов местного самоуправления за счет средств местного бюджета","05","02","91.1.00.00000","000",{"$f":"F132","v":8400.3}]
["Осуществление органами местного самоуправления полномочий местного значения поселения","05","02","91.1.00.60000","000",{"$f":"F133","v":8400.3}]
["Иные мероприятия и сфере установленных функций","05","02","91.1.00.60011","000",{"$f":"F134","v":8400.3}]
["Закупка товаров, работ и услуг для обеспечения государственных (муниципальных) нужд","05","02","91.1.00.60011","200",{"$f":"F135","v":8400.3}]
["Иные закупки товаров, работ и услуг для обеспечения государственных (муниципальных) нужд","05","02","91.1.00.60011","240",{"$f":"F136","v":8400.3}]
["Прочая закупка товаров, работ и услуг для обеспечения государственных (муниципальных) нужд","05","02","91.1.00.60011","244",{"$f":"7400+1000+0.3","v":8400.3}]
["Благоустройство","05","03","00.0.00.00000","000",{"$f":"F138","v":{"v":13114.899999999998,"d":"13114.9"}}]
["Непрограммные расходы органов местного самоуправления","05","03","91.0.00.00000","000",{"$f":"F139","v":{"v":13114.899999999998,"d":"13114.9"}}]
["Непрограммные расходы органов местного самоуправления за счет средств местного бюджета","05","03","91.1.00.00000","000",{"$f":"F140","v":{"v":13114.899999999998,"d":"13114.9"}}]
["Осуществление органами местного самоуправления полномочий местного значения поселения","05","03","91.1.00.60000","000",{"$f":"F141","v":{"v":13114.899999999998,"d":"13114.9"}}]
["Мероприятия в области жилищно-коммунального хозяйства","05","03","91.1.00.60100","000",{"$f":"F142+F148+F166","v":{"v":13114.899999999998,"d":"13114.9"}}]
["Уличное освещение","05","03","91.1.00.60101","000",{"$f":"F143+F146","v":2362.2}]
["Закупка товаров, работ и услуг для обеспечения государственных (муниципальных) нужд","05","03","91.1.00.60101","200",{"$f":"F144","v":2362.2}]
["Иные закупки товаров, работ и услуг для обеспечения государственных (муниципальных) нужд","05","03","91.1.00.60101","240",{"$f":"F145","v":2362.2}]
["Прочая закупка товаров, работ и услуг для обеспечения государственных (муниципальных) нужд","05","03","91.1.00.60101","244",{"$f":"1362.2+600+400","v":2362.2}]
["Иные бюджетные ассигнования","05","03","91.1.00.60101","800",{"$f":"F147","v":{"v":0,"d":"0.0"}}]
["Уплата иных платежей","05","03","91.1.00.60001","853",{"v":0,"d":"0.0"}]
["Прочие  мероприятия по благоустройству городских округов и поселений ","05","03","91.1.00.60105","000",{"$f":"F149","v":9972.4}]
["Закупка товаров, работ и услуг для обеспечения государственных (муниципальных) нужд","05","03","91.1.00.60105","200",{"$f":"F150","v":9972.4}]
["Иные закупки товаров, работ и услуг для обеспечения государственных (муниципальных) нужд","05","03","91.1.00.60105","240",{"$f":"F151","v":9972.4}]
["Прочая закупка товаров, работ и услуг для обеспечения государственных (муниципальных) нужд","05","03","91.1.00.60105","244",{"$f":"7472.4+250+2250","v":9972.4},null,2250]
["Реализация мероприятий перечня проектов народных инициатив за счет средств местного бюджета","05","03","91.1.00.60106","000",{"$f":"F153","v":{"v":0,"d":"0.0"}}]
["Закупка товаров, работ и услуг для обеспечения государственных (муниципальных) нужд","05","03","91.1.00.60107","200",{"$f":"F154","v":{"v":0,"d":"0.0"}}]
["Иные закупки товаров, работ и услуг для обеспечения государственных (муниципальных) нужд","05","03","91.1.00.60108","240",{"$f":"F155","v":{"v":0,"d":"0.0"}}]
["Прочая закупка товаров, работ и услуг для обеспечения государственных (муниципальных) нужд","05","03","91.1.00.60109","244"]
["Непрограммные расходы органов местного самоуправления за счет средств областного бюджета","05","03","91.1.00.60110","000",{"$f":"F157+F161","v":{"v":0,"d":"0.0"}}]
["Субсидии на реализацию мероприятий перечня проектов народных инициатив за счет областного бюджета","05","03","91.1.00.60111","000",{"$f":"F158","v":{"v":0,"d":"0.0"}}]
["Закупка товаров, работ и услуг для обеспечения государственных (муниципальных) нужд","05","03","91.1.00.60112","200",{"$f":"F159","v":{"v":0,"d":"0.0"}}]
["Иные закупки товаров, работ и услуг для обеспечения государственных (муниципальных) нужд","05","03","91.1.00.60113","240",{"$f":"F160","v":{"v":0,"d":"0.0"}}]
["Прочая закупка товаров, работ и услуг для обеспечения государственных (муниципальных) нужд","05","03","91.1.00.60114","244"]
["Субсидии на выравнивание обеспеченности муниципальных образований Иркутской области по реализации ими их отдельных расходных обязательств","05","03","91.1.00.60115","000",{"$f":"F162","v":{"v":0,"d":"0.0"}}]
["Закупка товаров, работ и услуг для обеспечения государственных (муниципальных) нужд","05","03","91.1.00.60116","200",{"$f":"F163","v":{"v":0,"d":"0.0"}}]
["Иные закупки товаров, работ и услуг для обеспечения государственных (муниципальных) нужд","05","03","91.1.00.60117","240",{"$f":"F164","v":{"v":0,"d":"0.0"}}]
["Прочая закупка товаров, работ и услуг для обеспечения государственных (муниципальных) нужд","05","03","91.1.00.60118","244"]
["Субсидии юридическим лицам (кроме некоммерческих организаций), индивидуальным предпринимателям, физическим лицам – производителям товаров, работ, услуг","05","03","91.1.00.60100","810",{"$f":"F166","v":{"v":780.3000000000002,"d":"780.3"}}]
["Субсидии на возмещение недополученных доходов и (или) возмещение фактически понесенных затрат в связи с производством (реализацией) товаров, выполнением работ, оказанием услуг ","05","03","91.1.00.60105","811",{"$f":"3697.4-2917.1","v":{"v":780.3000000000002,"d":"780.3"}},null,"2917,1+780,3-2917,1"]
["КУЛЬТУРА, КИНЕМАТОГРАФИЯ","08","00","00.0.00.00000","000",{"$f":"F168","v":16047.2}]
["КУЛЬТУРА","08","01","91.0.00.00000","000",{"$f":"F169+F175+F182","v":16047.2}]
["Непрограммные расходы органов местного самоуправления","08","01","91.1.00.00000","000",{"$f":"F170","v":{"v":11224,"d":"11224.0"}}]
["Осуществление органами местного самоуправления полномочий местного значения поселения","08","01","91.1.00.60002","000",{"$f":"F171","v":{"v":11224,"d":"11224.0"}}]
["Расходы на выплату персоналу в целях обеспечения выполнения функций государственными (муниципальными) органами, казенными учреждениями, органами управления государственными внебюджетными фондами","08","01","91.1.00.60002","100",{"$f":"F172","v":{"v":11224,"d":"11224.0"}}]
["Расходы на выплату персоналу казенных учреждений","08","01","91.1.00.60002","110",{"$f":"F173+F174","v":{"v":11224,"d":"11224.0"}}]
["Фонд оплаты труда казенных учреждений и взносы по обязательному социальному страхованию","08","01","91.1.00.60002","111",{"$f":"10659-2088.1","v":8570.9},null,"2240,5-2088,1"]
["Взносы по обязательному социальному страхованию на выплаты по оплате труда работников и иные выплаты работникам учреждений","08","01","91.1.00.60002","119",{"$f":"3219-565.9","v":2653.1},null,676.6]
["Непрограммные расходы органов местного самоуправления","08","01","91.0.00.00000","000",{"$f":"F176","v":4790.2}]
["Непрограммные расходы органов местного самоуправления за счет средств местного бюджета","08","01","91.1.00.00000","000",4790.2]
["Осуществление органами местного самоуправления полномочий местного значения поселения","08","01","91.1.00.60000","000",4790.2]
["Обеспечение деятельности в сфере установленных функции бюджетных, автономных и казенных учреждений","08","01","91.1.00.60002","000",4790.2]
["Закупка товаров, работ и услуг для обеспечения государственных (муниципальных) нужд","08","01","91.1.00.60002","200",4790.2]
["Иные закупки товаров, работ и услуг для обеспечения государственных (муниципальных) нужд","08","01","91.1.00.60002","240",4790.2]
["Прочая закупка товаров, работ и услуг для обеспечения государственных (муниципальных) нужд","08","01","91.1.00.60002","244",{"$f":"3373.2+600-12+450+400-21","v":4790.2},null,"450+400-21"]
["Иные бюджетные ассигнования","08","01","91.1.00.60002","850",{"$f":"F184+F183","v":{"v":33,"d":"33.0"}}]
["Уплата прочих налогов, сборов","08","01","91.1.00.60002","852",{"v":8,"d":"8.0"}]
["Уплата иных платежей","08","01","91.1.00.60002","853",{"v":25,"d":"25.0"},null,21]
["СОЦИАЛЬНАЯ ПОЛИТИКА","10","00","00.0.00.00000","000",{"$f":"F186","v":244.7}]
["Пенсионное обеспечение","10","01","00.0.00.00000","000",244.7]
["Непрограммные расходы органов местного самоуправления","10","01","91.0.00.00000","000",244.7]
["Непрограммные расходы органов местного самоуправления за счет средств местного бюджета","10","01","91.1.00.00000","000",244.7]
["Осуществление органами местного самоуправления полномочий местного значения поселения","10","01","91.1.00.60000","000",244.7]
["Доплаты к пенсиям муниципальных служащих","10","01","91.1.00.60018","000",244.7]
["Социальное обеспечение и иные выплаты населению","10","01","91.1.00.60018","300",244.7]
["Публичные нормативные социальные выплаты гражданам","10","01","91.1.00.60018","310",244.7]
["Иные пенсии, социальные доплаты к пенсиям","10","01","91.1.00.60018","312",244.7]
["ФИЗИЧЕСКАЯ КУЛЬТУРА И СПОРТ","11","00","00.0.00.00000","000",{"$f":"F195","v":{"$error":"#REF!"}}]
["Другие вопросы в области физической культуры и спорта","11","05","00.0.00.00000","000",{"$error":"#REF!"}]
["Непрограммные расходы органов местного самоуправления","11","05","91.0.00.00000","000",{"$error":"#REF!"}]
["Непрограммные расходы органов местного самоуправления за счет средств местного бюджета","11","05","91.1.00.00000","000",{"$error":"#REF!"}]
["Осуществление органами местного самоуправления полномочий местного значения поселения","11","05","91.1.00.60000","000",{"$error":"#REF!"}]
["Обеспечение деятельности в сфере установленных функции бюджетных, автономных и казенных учреждений","11","05","91.1.00.60002","000",{"$error":"#REF!"}]
["Закупка товаров, работ и услуг для обеспечения государственных (муниципальных) нужд","11","05","91.1.00.60002","200",{"$error":"#REF!"}]
["Иные закупки товаров, работ и услуг для обеспечения государственных (муниципальных) нужд","11","05","91.1.00.60002","240",{"$f":"#REF!","v":{"$error":"#REF!"}}]
["МЕЖБЮДЖЕТНЫЕ ТРАНСФЕРТЫ БЮДЖЕТАМ БЮДЖЕТНОЙ СИСТЕМЫ РФ","14","00","00.0.00.00000","000",{"$f":"F203","v":259.2}]
["Прочие межбюджетные трансферты общего характера ","14","03","00.0.00.00000","000",{"$f":"F204","v":259.2}]
["Непрограммые расходы органов местного самоуправления ","14","03","91.0.00.00000","000",259.2]
["Непрограммые расходы органов местного самоуправления за счет средств местного бюджета","14","03","91.1.00.00000","000",259.2]
["Осуществление органами местного самоуправления полномочий местного значения поселения","14","03","91.1.00.60000","000",259.2]
["Иные межбюджетные трансферты","14","03","91.1.00.60020","000",259.2]
["Выполнение функций органами местного самоуправления","14","03","91.1.00.60020","500",259.2]
["Иные межбюджетные трансферты","14","03","91.1.00.60020","540",259.2]
["МЕЖБЮДЖЕТНЫЕ ТРАНСФЕРТЫ ОБЩЕГО ХАРАКТЕРА БЮДЖЕТАМ СУБЪЕКТОВ РОССИЙСКОЙ ФЕДЕРАЦИИ И МУНИЦИПАЛЬНЫХ ОБРАЗОВАНИЙ ","14","00","00.0.00.00000","000",{"$f":"F211","v":{"$error":"#REF!"}}]
["Прочие межбюджетные трансферты общего характера ","14","03","00.0.00.00000","000",{"$error":"#REF!"}]
["Непрограммные расходы органов местного самоуправления","14","03","91.0.00.00000","000",{"$error":"#REF!"}]
["Непрограммные расходы органов местного самоуправления за счет средств местного бюджета","14","03","91.1.00.00000","000",{"$error":"#REF!"}]
["Осуществление органами местного самоуправления полномочий местного значения поселения","14","03","91.1.00.60000","000",{"$error":"#REF!"}]
["Иные межбюджетные трансферты","14","03","91.1.00.60020","000",{"$error":"#REF!"}]
["Межбюджетные трансферты","14","03","91.1.00.60020","500",{"$f":"#REF!","v":{"$error":"#REF!"}}]